Workbook

Sheet Introduction
B2: TT20 Debt-Elimination Schedule with Accelerator
E3: 2019-10-01
B4: Personal Finance: Another Perspective
B6: Purpose:
B7: The purpose of this spreadsheet is to give an Excel template for calculating
B8: how quickly you can pay off debts if you paid the most expensive debts off first (Ashton)
B9: or the shortest payoff first (Ramsey). It also assumes you continue making the same
B10: same payment each month even after you have paid off a specific loan. It also helps with
B11: the impact and savings of paying off loans early and using an accelerator.
B13: Instructions:
B14: 1) First clear the form by clicking on the "1. Clear Form" button.
B15: 2) Once the form has been cleared, add your debt to the worksheet.
B16: This can be done in one of 2 ways. You can click on the "2. Add Debt" button and
B17: type in the information one account at a time, or you can go to the
B18: "Sample Debt Data" tab and put all the information in there, and then copy it to the
B19: "Debt Repayment Schedule" tab cell "B11".
B20: 3) Calculate the payments for your debt by ensuring that the Beginning Month,
B21: Beginning Year, and Accelerator fields are filled in correctly and clicking
B22: on the "3. Calculate" button.
B23: 4) (Optional) Once the calculation of the payments has been made, you can
B24: add additional "one-off" payments to any month by typing the additional amount
B25: (above and beyond the accelerator amount) into the
B26: Additional Payments column that corresponds to the month that you will make
B27: the payment. Once you have added the amount simply click the
B28: "4. Calculate with Additional Payments" button.
B29: 5) Review the summary information provided in the yellow boxes at the top left
B30: of the form and the individual payment information for each loan and each month
B31: in comments for the cells.
B33: Disclosure:
B34: The purpose of this spreadsheet and this class is to help you get your financial house in
B35: order and to help you on your road to financial self-reliance. If there are mistakes in this
B36: spreadsheet, please bring them to our attention and we will correct them in upcoming
B37: versions. The teacher, and BYU, specifically disclaim any liability, or responsibility for
B38: claims, loss, or risk incurred, directly or indirectly, from using this material.
B40: Special Thanks:
B41: Special thanks to Ammon Shumway and Jason Hollingsworth who put
B42: the original programming together for this spreadsheet. Also, thanks to Cory Ramage
B43: and Gove Allen who revised the programming and added functionality. We appreciate
B44: their expertise and willingness to share their work with this class.

Sheet Debt Repayment Schedule
A1: Debt-Elimination Spreadsheet with Accelerator (LT20)
A3: Total Debt | B3: =SUM(B12:Y12) -> 204434 | C3: Beginning Month: | D3: January | AA3: Pay highest interest loan first
A4: Total Interest Paid | B4: =SUM(B354:F354) -> 123571.8282 | C4: Beginning Year: | D4: 2019 | AA4: Pay smallest balance first
A5: Total Interest and Principle | B5: =B4+B3 -> 328005.8282 | C5: Accelerator: | D5: 0 | G5: Accelerator is an every month additional payment and goes in cell "D5." | AA5: 1
A6: Minimum Payments/Month | B6: =+SUM(B16:U16) -> 1739.998413 | C6: Beginning Month | D6: =A17 -> 2019-01-01 | G6: One time payments go in the Additional Payments Column
A7: Months Paid Off Early | B7: =COUNTIF(H$17:H$352, "-") -> 147 | C7: Ending Month | D7: =DATE_PAID -> 2034-09-01
A8: Date Paid Off | B8: 2034-09-01 | C8: Years to Pay Off | D8: =(D7-D6)/365 -> 15.67671233
A9: Total Interest Saved | B9: 103565.99 | C9: Years Paid Early | D9: =MONTHS_EARLY/12 -> 12.25
A11: Debt: | B11: AMEX Credit Card | C11: Visa Credit Card | D11: RC Willeys | E11: Mortgage | F11: Auto Loan
A12: Balance Due | B12: 2820 | C12: 2135 | D12: 1490 | E12: 190843 | F12: 7146
A13: APR | B13: 0.226 | C13: 0.2215 | D13: 0.182 | E13: 0.065 | F13: 0.049
A14: Monthly Interest Rate | B14: =(B$13)/12 -> 0.01883333333 | C14: =(C$13)/12 -> 0.01845833333 | D14: =(D$13)/12 -> 0.01516666667 | E14: =(E$13)/12 -> 0.005416666667 | F14: =(F$13)/12 -> 0.004083333333
A15: # of months to pay off | B15: 62.42 | C15: 12 | D15: 30.1 | E15: 335.65 | F15: 47.58
A16: Scheduled Payment Amount: | B16: =PMT(B14,15:15,B12)*-1 -> 77.19856196 | C16: =PMT(C14,15:15,C12)*-1 -> 199.9781607 | D16: =PMT(D14,15:15,D12)*-1 -> 62.02562377 | E16: =PMT(E14,15:15,E12)*-1 -> 1235.239563 | F16: =PMT(F14,15:15,F12)*-1 -> 165.5565042 | H16: Total Monthly Payments | I16: Additional Payments
A17: 2019-01-01 | B17: 77.1986 | C17: 199.9782 | D17: 62.0256 | E17: 1235.2396 | F17: 165.5565 | H17: 1739.9985 | I17: -
A18: 2019-02-01 | B18: 77.1986 | C18: 199.9782 | D18: 62.0256 | E18: 1235.2396 | F18: 165.5565 | H18: 1739.9985 | I18: -
A19: 2019-03-01 | B19: 77.1986 | C19: 199.9782 | D19: 62.0256 | E19: 1235.2396 | F19: 165.5565 | H19: 1739.9985 | I19: -
A20: 2019-04-01 | B20: 77.1986 | C20: 199.9782 | D20: 62.0256 | E20: 1235.2396 | F20: 165.5565 | H20: 1739.9985 | I20: -
A21: 2019-05-01 | B21: 77.1986 | C21: 199.9782 | D21: 62.0256 | E21: 1235.2396 | F21: 165.5565 | H21: 1739.9985 | I21: -
A22: 2019-06-01 | B22: 77.1986 | C22: 199.9782 | D22: 62.0256 | E22: 1235.2396 | F22: 165.5565 | H22: 1739.9985 | I22: -
A23: 2019-07-01 | B23: 77.1986 | C23: 199.9782 | D23: 62.0256 | E23: 1235.2396 | F23: 165.5565 | H23: 1739.9985 | I23: -
A24: 2019-08-01 | B24: 77.1986 | C24: 199.9782 | D24: 62.0256 | E24: 1235.2396 | F24: 165.5565 | H24: 1739.9985 | I24: -
A25: 2019-09-01 | B25: 77.1986 | C25: 199.9782 | D25: 62.0256 | E25: 1235.2396 | F25: 165.5565 | H25: 1739.9985 | I25: -
A26: 2019-10-01 | B26: 77.1986 | C26: 199.9782 | D26: 62.0256 | E26: 1235.2396 | F26: 165.5565 | H26: 1739.9985 | I26: -
A27: 2019-11-01 | B27: 77.1986 | C27: 199.9782 | D27: 62.0256 | E27: 1235.2396 | F27: 165.5565 | H27: 1739.9985 | I27: -
A28: 2019-12-01 | B28: 77.199123 | C28: 199.977677 | D28: 62.0256 | E28: 1235.2396 | F28: 165.5565 | H28: 1739.9985 | I28: -
A29: 2020-01-01 | B29: 277.1768 | C29: - | D29: 62.0256 | E29: 1235.2396 | F29: 165.5565 | H29: 1739.9985 | I29: -
A30: 2020-02-01 | B30: 277.1768 | C30: - | D30: 62.0256 | E30: 1235.2396 | F30: 165.5565 | H30: 1739.9985 | I30: -
A31: 2020-03-01 | B31: 277.1768 | C31: - | D31: 62.0256 | E31: 1235.2396 | F31: 165.5565 | H31: 1739.9985 | I31: -
A32: 2020-04-01 | B32: 277.1768 | C32: - | D32: 62.0256 | E32: 1235.2396 | F32: 165.5565 | H32: 1739.9985 | I32: -
A33: 2020-05-01 | B33: 277.1768 | C33: - | D33: 62.0256 | E33: 1235.2396 | F33: 165.5565 | H33: 1739.9985 | I33: -
A34: 2020-06-01 | B34: 277.1768 | C34: - | D34: 62.0256 | E34: 1235.2396 | F34: 165.5565 | H34: 1739.9985 | I34: -
A35: 2020-07-01 | B35: 277.1768 | C35: - | D35: 62.0256 | E35: 1235.2396 | F35: 165.5565 | H35: 1739.9985 | I35: -
A36: 2020-08-01 | B36: 277.1768 | C36: - | D36: 62.0256 | E36: 1235.2396 | F36: 165.5565 | H36: 1739.9985 | I36: -
A37: 2020-09-01 | B37: 277.1768 | C37: - | D37: 62.0256 | E37: 1235.2396 | F37: 165.5565 | H37: 1739.9985 | I37: -
A38: 2020-10-01 | B38: 269.9480373 | C38: - | D38: 69.25436268 | E38: 1235.2396 | F38: 165.5565 | H38: 1739.9985 | I38: -
A39: 2020-11-01 | B39: - | C39: - | D39: 339.2024 | E39: 1235.2396 | F39: 165.5565 | H39: 1739.9985 | I39: -
A40: 2020-12-01 | B40: - | C40: - | D40: 131.9871872 | E40: 1442.454813 | F40: 165.5565 | H40: 1739.9985 | I40: -
A41: 2021-01-01 | B41: - | C41: - | D41: - | E41: 1574.442 | F41: 165.5565 | H41: 1739.9985 | I41: -
A42: 2021-02-01 | B42: - | C42: - | D42: - | E42: 1574.442 | F42: 165.5565 | H42: 1739.9985 | I42: -
A43: 2021-03-01 | B43: - | C43: - | D43: - | E43: 1574.442 | F43: 165.5565 | H43: 1739.9985 | I43: -
A44: 2021-04-01 | B44: - | C44: - | D44: - | E44: 1574.442 | F44: 165.5565 | H44: 1739.9985 | I44: -
A45: 2021-05-01 | B45: - | C45: - | D45: - | E45: 1574.442 | F45: 165.5565 | H45: 1739.9985 | I45: -
A46: 2021-06-01 | B46: - | C46: - | D46: - | E46: 1574.442 | F46: 165.5565 | H46: 1739.9985 | I46: -
A47: 2021-07-01 | B47: - | C47: - | D47: - | E47: 1574.442 | F47: 165.5565 | H47: 1739.9985 | I47: -
A48: 2021-08-01 | B48: - | C48: - | D48: - | E48: 1574.442 | F48: 165.5565 | H48: 1739.9985 | I48: -
A49: 2021-09-01 | B49: - | C49: - | D49: - | E49: 1574.442 | F49: 165.5565 | H49: 1739.9985 | I49: -
A50: 2021-10-01 | B50: - | C50: - | D50: - | E50: 1574.442 | F50: 165.5565 | H50: 1739.9985 | I50: -
A51: 2021-11-01 | B51: - | C51: - | D51: - | E51: 1574.442 | F51: 165.5565 | H51: 1739.9985 | I51: -
A52: 2021-12-01 | B52: - | C52: - | D52: - | E52: 1574.442 | F52: 165.5565 | H52: 1739.9985 | I52: -
A53: 2022-01-01 | B53: - | C53: - | D53: - | E53: 1574.442 | F53: 165.5565 | H53: 1739.9985 | I53: -
A54: 2022-02-01 | B54: - | C54: - | D54: - | E54: 1574.442 | F54: 165.5565 | H54: 1739.9985 | I54: -
A55: 2022-03-01 | B55: - | C55: - | D55: - | E55: 1574.442 | F55: 165.5565 | H55: 1739.9985 | I55: -
A56: 2022-04-01 | B56: - | C56: - | D56: - | E56: 1574.442 | F56: 165.5565 | H56: 1739.9985 | I56: -
A57: 2022-05-01 | B57: - | C57: - | D57: - | E57: 1574.442 | F57: 165.5565 | H57: 1739.9985 | I57: -
A58: 2022-06-01 | B58: - | C58: - | D58: - | E58: 1574.442 | F58: 165.5565 | H58: 1739.9985 | I58: -
A59: 2022-07-01 | B59: - | C59: - | D59: - | E59: 1574.442 | F59: 165.5565 | H59: 1739.9985 | I59: -
A60: 2022-08-01 | B60: - | C60: - | D60: - | E60: 1574.442 | F60: 165.5565 | H60: 1739.9985 | I60: -
A61: 2022-09-01 | B61: - | C61: - | D61: - | E61: 1574.442 | F61: 165.5565 | H61: 1739.9985 | I61: -
A62: 2022-10-01 | B62: - | C62: - | D62: - | E62: 1574.442 | F62: 165.5565 | H62: 1739.9985 | I62: -
A63: 2022-11-01 | B63: - | C63: - | D63: - | E63: 1574.442 | F63: 165.5565 | H63: 1739.9985 | I63: -
A64: 2022-12-01 | B64: - | C64: - | D64: - | E64: 1643.893344 | F64: 96.10515582 | H64: 1739.9985 | I64: -
A65: 2023-01-01 | B65: - | C65: - | D65: - | E65: 1739.9985 | F65: - | H65: 1739.9985 | I65: -
A66: 2023-02-01 | B66: - | C66: - | D66: - | E66: 1739.9985 | F66: - | H66: 1739.9985 | I66: -
A67: 2023-03-01 | B67: - | C67: - | D67: - | E67: 1739.9985 | F67: - | H67: 1739.9985 | I67: -
A68: 2023-04-01 | B68: - | C68: - | D68: - | E68: 1739.9985 | F68: - | H68: 1739.9985 | I68: -
A69: 2023-05-01 | B69: - | C69: - | D69: - | E69: 1739.9985 | F69: - | H69: 1739.9985 | I69: -
A70: 2023-06-01 | B70: - | C70: - | D70: - | E70: 1739.9985 | F70: - | H70: 1739.9985 | I70: -
A71: 2023-07-01 | B71: - | C71: - | D71: - | E71: 1739.9985 | F71: - | H71: 1739.9985 | I71: -
A72: 2023-08-01 | B72: - | C72: - | D72: - | E72: 1739.9985 | F72: - | H72: 1739.9985 | I72: -
A73: 2023-09-01 | B73: - | C73: - | D73: - | E73: 1739.9985 | F73: - | H73: 1739.9985 | I73: -
A74: 2023-10-01 | B74: - | C74: - | D74: - | E74: 1739.9985 | F74: - | H74: 1739.9985 | I74: -
A75: 2023-11-01 | B75: - | C75: - | D75: - | E75: 1739.9985 | F75: - | H75: 1739.9985 | I75: -
A76: 2023-12-01 | B76: - | C76: - | D76: - | E76: 1739.9985 | F76: - | H76: 1739.9985 | I76: -
A77: 2024-01-01 | B77: - | C77: - | D77: - | E77: 1739.9985 | F77: - | H77: 1739.9985 | I77: -
A78: 2024-02-01 | B78: - | C78: - | D78: - | E78: 1739.9985 | F78: - | H78: 1739.9985 | I78: -
A79: 2024-03-01 | B79: - | C79: - | D79: - | E79: 1739.9985 | F79: - | H79: 1739.9985 | I79: -
A80: 2024-04-01 | B80: - | C80: - | D80: - | E80: 1739.9985 | F80: - | H80: 1739.9985 | I80: -
A81: 2024-05-01 | B81: - | C81: - | D81: - | E81: 1739.9985 | F81: - | H81: 1739.9985 | I81: -
A82: 2024-06-01 | B82: - | C82: - | D82: - | E82: 1739.9985 | F82: - | H82: 1739.9985 | I82: -
A83: 2024-07-01 | B83: - | C83: - | D83: - | E83: 1739.9985 | F83: - | H83: 1739.9985 | I83: -
A84: 2024-08-01 | B84: - | C84: - | D84: - | E84: 1739.9985 | F84: - | H84: 1739.9985 | I84: -
A85: 2024-09-01 | B85: - | C85: - | D85: - | E85: 1739.9985 | F85: - | H85: 1739.9985 | I85: -
A86: 2024-10-01 | B86: - | C86: - | D86: - | E86: 1739.9985 | F86: - | H86: 1739.9985 | I86: -
A87: 2024-11-01 | B87: - | C87: - | D87: - | E87: 1739.9985 | F87: - | H87: 1739.9985 | I87: -
A88: 2024-12-01 | B88: - | C88: - | D88: - | E88: 1739.9985 | F88: - | H88: 1739.9985 | I88: -
A89: 2025-01-01 | B89: - | C89: - | D89: - | E89: 1739.9985 | F89: - | H89: 1739.9985 | I89: -
A90: 2025-02-01 | B90: - | C90: - | D90: - | E90: 1739.9985 | F90: - | H90: 1739.9985 | I90: -
A91: 2025-03-01 | B91: - | C91: - | D91: - | E91: 1739.9985 | F91: - | H91: 1739.9985 | I91: -
A92: 2025-04-01 | B92: - | C92: - | D92: - | E92: 1739.9985 | F92: - | H92: 1739.9985 | I92: -
A93: 2025-05-01 | B93: - | C93: - | D93: - | E93: 1739.9985 | F93: - | H93: 1739.9985 | I93: -
A94: 2025-06-01 | B94: - | C94: - | D94: - | E94: 1739.9985 | F94: - | H94: 1739.9985 | I94: -
A95: 2025-07-01 | B95: - | C95: - | D95: - | E95: 1739.9985 | F95: - | H95: 1739.9985 | I95: -
A96: 2025-08-01 | B96: - | C96: - | D96: - | E96: 1739.9985 | F96: - | H96: 1739.9985 | I96: -
A97: 2025-09-01 | B97: - | C97: - | D97: - | E97: 1739.9985 | F97: - | H97: 1739.9985 | I97: -
A98: 2025-10-01 | B98: - | C98: - | D98: - | E98: 1739.9985 | F98: - | H98: 1739.9985 | I98: -
A99: 2025-11-01 | B99: - | C99: - | D99: - | E99: 1739.9985 | F99: - | H99: 1739.9985 | I99: -
A100: 2025-12-01 | B100: - | C100: - | D100: - | E100: 1739.9985 | F100: - | H100: 1739.9985 | I100: -
A101: 2026-01-01 | B101: - | C101: - | D101: - | E101: 1739.9985 | F101: - | H101: 1739.9985 | I101: -
A102: 2026-02-01 | B102: - | C102: - | D102: - | E102: 1739.9985 | F102: - | H102: 1739.9985 | I102: -
A103: 2026-03-01 | B103: - | C103: - | D103: - | E103: 1739.9985 | F103: - | H103: 1739.9985 | I103: -
A104: 2026-04-01 | B104: - | C104: - | D104: - | E104: 1739.9985 | F104: - | H104: 1739.9985 | I104: -
A105: 2026-05-01 | B105: - | C105: - | D105: - | E105: 1739.9985 | F105: - | H105: 1739.9985 | I105: -
A106: 2026-06-01 | B106: - | C106: - | D106: - | E106: 1739.9985 | F106: - | H106: 1739.9985 | I106: -
A107: 2026-07-01 | B107: - | C107: - | D107: - | E107: 1739.9985 | F107: - | H107: 1739.9985 | I107: -
A108: 2026-08-01 | B108: - | C108: - | D108: - | E108: 1739.9985 | F108: - | H108: 1739.9985 | I108: -
A109: 2026-09-01 | B109: - | C109: - | D109: - | E109: 1739.9985 | F109: - | H109: 1739.9985 | I109: -
A110: 2026-10-01 | B110: - | C110: - | D110: - | E110: 1739.9985 | F110: - | H110: 1739.9985 | I110: -
A111: 2026-11-01 | B111: - | C111: - | D111: - | E111: 1739.9985 | F111: - | H111: 1739.9985 | I111: -
A112: 2026-12-01 | B112: - | C112: - | D112: - | E112: 1739.9985 | F112: - | H112: 1739.9985 | I112: -
A113: 2027-01-01 | B113: - | C113: - | D113: - | E113: 1739.9985 | F113: - | H113: 1739.9985 | I113: -
A114: 2027-02-01 | B114: - | C114: - | D114: - | E114: 1739.9985 | F114: - | H114: 1739.9985 | I114: -
A115: 2027-03-01 | B115: - | C115: - | D115: - | E115: 1739.9985 | F115: - | H115: 1739.9985 | I115: -
A116: 2027-04-01 | B116: - | C116: - | D116: - | E116: 1739.9985 | F116: - | H116: 1739.9985 | I116: -
A117: 2027-05-01 | B117: - | C117: - | D117: - | E117: 1739.9985 | F117: - | H117: 1739.9985 | I117: -
A118: 2027-06-01 | B118: - | C118: - | D118: - | E118: 1739.9985 | F118: - | H118: 1739.9985 | I118: -
A119: 2027-07-01 | B119: - | C119: - | D119: - | E119: 1739.9985 | F119: - | H119: 1739.9985 | I119: -
A120: 2027-08-01 | B120: - | C120: - | D120: - | E120: 1739.9985 | F120: - | H120: 1739.9985 | I120: -
A121: 2027-09-01 | B121: - | C121: - | D121: - | E121: 1739.9985 | F121: - | H121: 1739.9985 | I121: -
A122: 2027-10-01 | B122: - | C122: - | D122: - | E122: 1739.9985 | F122: - | H122: 1739.9985 | I122: -
A123: 2027-11-01 | B123: - | C123: - | D123: - | E123: 1739.9985 | F123: - | H123: 1739.9985 | I123: -
A124: 2027-12-01 | B124: - | C124: - | D124: - | E124: 1739.9985 | F124: - | H124: 1739.9985 | I124: -
A125: 2028-01-01 | B125: - | C125: - | D125: - | E125: 1739.9985 | F125: - | H125: 1739.9985 | I125: -
A126: 2028-02-01 | B126: - | C126: - | D126: - | E126: 1739.9985 | F126: - | H126: 1739.9985 | I126: -
A127: 2028-03-01 | B127: - | C127: - | D127: - | E127: 1739.9985 | F127: - | H127: 1739.9985 | I127: -
A128: 2028-04-01 | B128: - | C128: - | D128: - | E128: 1739.9985 | F128: - | H128: 1739.9985 | I128: -
A129: 2028-05-01 | B129: - | C129: - | D129: - | E129: 1739.9985 | F129: - | H129: 1739.9985 | I129: -
A130: 2028-06-01 | B130: - | C130: - | D130: - | E130: 1739.9985 | F130: - | H130: 1739.9985 | I130: -
A131: 2028-07-01 | B131: - | C131: - | D131: - | E131: 1739.9985 | F131: - | H131: 1739.9985 | I131: -
A132: 2028-08-01 | B132: - | C132: - | D132: - | E132: 1739.9985 | F132: - | H132: 1739.9985 | I132: -
A133: 2028-09-01 | B133: - | C133: - | D133: - | E133: 1739.9985 | F133: - | H133: 1739.9985 | I133: -
A134: 2028-10-01 | B134: - | C134: - | D134: - | E134: 1739.9985 | F134: - | H134: 1739.9985 | I134: -
A135: 2028-11-01 | B135: - | C135: - | D135: - | E135: 1739.9985 | F135: - | H135: 1739.9985 | I135: -
A136: 2028-12-01 | B136: - | C136: - | D136: - | E136: 1739.9985 | F136: - | H136: 1739.9985 | I136: -
A137: 2029-01-01 | B137: - | C137: - | D137: - | E137: 1739.9985 | F137: - | H137: 1739.9985 | I137: -
A138: 2029-02-01 | B138: - | C138: - | D138: - | E138: 1739.9985 | F138: - | H138: 1739.9985 | I138: -
A139: 2029-03-01 | B139: - | C139: - | D139: - | E139: 1739.9985 | F139: - | H139: 1739.9985 | I139: -
A140: 2029-04-01 | B140: - | C140: - | D140: - | E140: 1739.9985 | F140: - | H140: 1739.9985 | I140: -
A141: 2029-05-01 | B141: - | C141: - | D141: - | E141: 1739.9985 | F141: - | H141: 1739.9985 | I141: -
A142: 2029-06-01 | B142: - | C142: - | D142: - | E142: 1739.9985 | F142: - | H142: 1739.9985 | I142: -
A143: 2029-07-01 | B143: - | C143: - | D143: - | E143: 1739.9985 | F143: - | H143: 1739.9985 | I143: -
A144: 2029-08-01 | B144: - | C144: - | D144: - | E144: 1739.9985 | F144: - | H144: 1739.9985 | I144: -
A145: 2029-09-01 | B145: - | C145: - | D145: - | E145: 1739.9985 | F145: - | H145: 1739.9985 | I145: -
A146: 2029-10-01 | B146: - | C146: - | D146: - | E146: 1739.9985 | F146: - | H146: 1739.9985 | I146: -
A147: 2029-11-01 | B147: - | C147: - | D147: - | E147: 1739.9985 | F147: - | H147: 1739.9985 | I147: -
A148: 2029-12-01 | B148: - | C148: - | D148: - | E148: 1739.9985 | F148: - | H148: 1739.9985 | I148: -
A149: 2030-01-01 | B149: - | C149: - | D149: - | E149: 1739.9985 | F149: - | H149: 1739.9985 | I149: -
A150: 2030-02-01 | B150: - | C150: - | D150: - | E150: 1739.9985 | F150: - | H150: 1739.9985 | I150: -
A151: 2030-03-01 | B151: - | C151: - | D151: - | E151: 1739.9985 | F151: - | H151: 1739.9985 | I151: -
A152: 2030-04-01 | B152: - | C152: - | D152: - | E152: 1739.9985 | F152: - | H152: 1739.9985 | I152: -
A153: 2030-05-01 | B153: - | C153: - | D153: - | E153: 1739.9985 | F153: - | H153: 1739.9985 | I153: -
A154: 2030-06-01 | B154: - | C154: - | D154: - | E154: 1739.9985 | F154: - | H154: 1739.9985 | I154: -
A155: 2030-07-01 | B155: - | C155: - | D155: - | E155: 1739.9985 | F155: - | H155: 1739.9985 | I155: -
A156: 2030-08-01 | B156: - | C156: - | D156: - | E156: 1739.9985 | F156: - | H156: 1739.9985 | I156: -
A157: 2030-09-01 | B157: - | C157: - | D157: - | E157: 1739.9985 | F157: - | H157: 1739.9985 | I157: -
A158: 2030-10-01 | B158: - | C158: - | D158: - | E158: 1739.9985 | F158: - | H158: 1739.9985 | I158: -
A159: 2030-11-01 | B159: - | C159: - | D159: - | E159: 1739.9985 | F159: - | H159: 1739.9985 | I159: -
A160: 2030-12-01 | B160: - | C160: - | D160: - | E160: 1739.9985 | F160: - | H160: 1739.9985 | I160: -
A161: 2031-01-01 | B161: - | C161: - | D161: - | E161: 1739.9985 | F161: - | H161: 1739.9985 | I161: -
A162: 2031-02-01 | B162: - | C162: - | D162: - | E162: 1739.9985 | F162: - | H162: 1739.9985 | I162: -
A163: 2031-03-01 | B163: - | C163: - | D163: - | E163: 1739.9985 | F163: - | H163: 1739.9985 | I163: -
A164: 2031-04-01 | B164: - | C164: - | D164: - | E164: 1739.9985 | F164: - | H164: 1739.9985 | I164: -
A165: 2031-05-01 | B165: - | C165: - | D165: - | E165: 1739.9985 | F165: - | H165: 1739.9985 | I165: -
A166: 2031-06-01 | B166: - | C166: - | D166: - | E166: 1739.9985 | F166: - | H166: 1739.9985 | I166: -
A167: 2031-07-01 | B167: - | C167: - | D167: - | E167: 1739.9985 | F167: - | H167: 1739.9985 | I167: -
A168: 2031-08-01 | B168: - | C168: - | D168: - | E168: 1739.9985 | F168: - | H168: 1739.9985 | I168: -
A169: 2031-09-01 | B169: - | C169: - | D169: - | E169: 1739.9985 | F169: - | H169: 1739.9985 | I169: -
A170: 2031-10-01 | B170: - | C170: - | D170: - | E170: 1739.9985 | F170: - | H170: 1739.9985 | I170: -
A171: 2031-11-01 | B171: - | C171: - | D171: - | E171: 1739.9985 | F171: - | H171: 1739.9985 | I171: -
A172: 2031-12-01 | B172: - | C172: - | D172: - | E172: 1739.9985 | F172: - | H172: 1739.9985 | I172: -
A173: 2032-01-01 | B173: - | C173: - | D173: - | E173: 1739.9985 | F173: - | H173: 1739.9985 | I173: -
A174: 2032-02-01 | B174: - | C174: - | D174: - | E174: 1739.9985 | F174: - | H174: 1739.9985 | I174: -
A175: 2032-03-01 | B175: - | C175: - | D175: - | E175: 1739.9985 | F175: - | H175: 1739.9985 | I175: -
A176: 2032-04-01 | B176: - | C176: - | D176: - | E176: 1739.9985 | F176: - | H176: 1739.9985 | I176: -
A177: 2032-05-01 | B177: - | C177: - | D177: - | E177: 1739.9985 | F177: - | H177: 1739.9985 | I177: -
A178: 2032-06-01 | B178: - | C178: - | D178: - | E178: 1739.9985 | F178: - | H178: 1739.9985 | I178: -
A179: 2032-07-01 | B179: - | C179: - | D179: - | E179: 1739.9985 | F179: - | H179: 1739.9985 | I179: -
A180: 2032-08-01 | B180: - | C180: - | D180: - | E180: 1739.9985 | F180: - | H180: 1739.9985 | I180: -
A181: 2032-09-01 | B181: - | C181: - | D181: - | E181: 1739.9985 | F181: - | H181: 1739.9985 | I181: -
A182: 2032-10-01 | B182: - | C182: - | D182: - | E182: 1739.9985 | F182: - | H182: 1739.9985 | I182: -
A183: 2032-11-01 | B183: - | C183: - | D183: - | E183: 1739.9985 | F183: - | H183: 1739.9985 | I183: -
A184: 2032-12-01 | B184: - | C184: - | D184: - | E184: 1739.9985 | F184: - | H184: 1739.9985 | I184: -
A185: 2033-01-01 | B185: - | C185: - | D185: - | E185: 1739.9985 | F185: - | H185: 1739.9985 | I185: -
A186: 2033-02-01 | B186: - | C186: - | D186: - | E186: 1739.9985 | F186: - | H186: 1739.9985 | I186: -
A187: 2033-03-01 | B187: - | C187: - | D187: - | E187: 1739.9985 | F187: - | H187: 1739.9985 | I187: -
A188: 2033-04-01 | B188: - | C188: - | D188: - | E188: 1739.9985 | F188: - | H188: 1739.9985 | I188: -
A189: 2033-05-01 | B189: - | C189: - | D189: - | E189: 1739.9985 | F189: - | H189: 1739.9985 | I189: -
A190: 2033-06-01 | B190: - | C190: - | D190: - | E190: 1739.9985 | F190: - | H190: 1739.9985 | I190: -
A191: 2033-07-01 | B191: - | C191: - | D191: - | E191: 1739.9985 | F191: - | H191: 1739.9985 | I191: -
A192: 2033-08-01 | B192: - | C192: - | D192: - | E192: 1739.9985 | F192: - | H192: 1739.9985 | I192: -
A193: 2033-09-01 | B193: - | C193: - | D193: - | E193: 1739.9985 | F193: - | H193: 1739.9985 | I193: -
A194: 2033-10-01 | B194: - | C194: - | D194: - | E194: 1739.9985 | F194: - | H194: 1739.9985 | I194: -
A195: 2033-11-01 | B195: - | C195: - | D195: - | E195: 1739.9985 | F195: - | H195: 1739.9985 | I195: -
A196: 2033-12-01 | B196: - | C196: - | D196: - | E196: 1739.9985 | F196: - | H196: 1739.9985 | I196: -
A197: 2034-01-01 | B197: - | C197: - | D197: - | E197: 1739.9985 | F197: - | H197: 1739.9985 | I197: -
A198: 2034-02-01 | B198: - | C198: - | D198: - | E198: 1739.9985 | F198: - | H198: 1739.9985 | I198: -
A199: 2034-03-01 | B199: - | C199: - | D199: - | E199: 1739.9985 | F199: - | H199: 1739.9985 | I199: -
A200: 2034-04-01 | B200: - | C200: - | D200: - | E200: 1739.9985 | F200: - | H200: 1739.9985 | I200: -
A201: 2034-05-01 | B201: - | C201: - | D201: - | E201: 1739.9985 | F201: - | H201: 1739.9985 | I201: -
A202: 2034-06-01 | B202: - | C202: - | D202: - | E202: 1739.9985 | F202: - | H202: 1739.9985 | I202: -
... 152 more rows

Sheet FORM (hidden)
C3: Name (What is the institution and type of debt?)
C6: Balance (How much principal do you still owe?)
C9: APR in % (What is your Annual Percentage Rate?)
C12: Months to pay off (How many months will you be paying this loan?)
C15: Minimum payment (What is your minimum payment?) * optional

Sheet LOOKUPS (hidden)
A1: 1 | B1: January
A2: 2 | B2: February
A3: 3 | B3: March
A4: 4 | B4: April
A5: 5 | B5: May
A6: 6 | B6: June
A7: 7 | B7: July
A8: 8 | B8: August
A9: 9 | B9: September
A10: 10 | B10: October
A11: 11 | B11: November
A12: 12 | B12: December

Sheet Sample Debt Data
T1: 2019
A2: Sample Debt Data for the Repayment System | H2: PowerPoint Data | P2: 2019 | T2: 2020
P3: 2020 | T3: 2021
P4: 2021
P5: 2022
A6: Visa Credit Card | B6: RC Willeys | C6: Auto Loan | D6: AMEX Credit Card | E6: Mortgage | H6: Credit Card | I6: Dentist | J6: Department Store | K6: Piano | L6: Auto
A7: 2135 | B7: 1490 | C7: 7146 | D7: 2820 | E7: 190843 | H7: 423 | I7: 771 | J7: 779 | K7: 1230 | L7: 3009
A8: 0.2215 | B8: 0.182 | C8: 0.049 | D8: 0.226 | E8: 0.065 | H8: 0.19 | I8: 0.09 | J8: 0.13 | K8: 0.07 | L8: 0.065
A9: =(A8)/12 -> 0.01845833333 | B9: =(B8)/12 -> 0.01516666667 | C9: =(C8)/12 -> 0.004083333333 | D9: =(D8)/12 -> 0.01883333333 | E9: =(E8)/12 -> 0.005416666667 | H9: =(H$13)/12 -> 0 | I9: =(I$13)/12 -> 0 | J9: =(J$13)/12 -> 0 | K9: =(K$13)/12 -> 0 | L9: =(L$13)/12 -> 0
A10: 12 | B10: 30.1 | C10: 47.58 | D10: 62.42 | E10: 335.65 | H10: 4 | I10: 16.45 | J10: 11.92 | K10: 17.29 | L10: 13.3
A11: =PMT(A9,10:10,A7)*-1 -> 199.9781607 | B11: =PMT(B9,10:10,B7)*-1 -> 62.02562377 | C11: =PMT(C9,10:10,C7)*-1 -> 165.5565042 | D11: =PMT(D9,10:10,D7)*-1 -> 77.19856196 | E11: =PMT(E9,10:10,E7)*-1 -> 1235.239563 | H11: =PMT(H9,10:10,H7)*-1 -> 105.75 | I11: =PMT(I9,10:10,I7)*-1 -> 46.86930091 | J11: =PMT(J9,10:10,J7)*-1 -> 65.35234899 | K11: =PMT(K9,10:10,K7)*-1 -> 71.13938693 | L11: =PMT(L9,10:10,L7)*-1 -> 226.2406015
